[Event "1st Bella Italia International 2022"]
[Site "Lignano"]
[Date "2022.08.18"]
[Round "1.6"]
[White "Heredia Serrano, Carla"]
[Black "Jonkman, Harmen"]
[Result "0-1"]
[ECO "C67"]
[WhiteElo "2090"]
[BlackElo "2373"]
[Annotator "TA"]
[PlyCount "54"]
[EventDate "2022.08.18"]
[EventCountry "ITA"]
[SourceTitle "playchess.com"]
[Source "ChessBase"]
[SourceQuality "1"]
[TimeControl "5400+30"]

{[%evp 9,54,15,26,-14,0,-11,-5,-17,2,6,15,0,22,33,35,29,37,12,11,3,0,11,8,0,20,-8,0,14,11,-33,-52,-77,-58,-153,-145,-255,-255,-254,-262,-244,-237,-237,-239,-614,-615,-583,-568]} 1. e4 {[%emt 0:00:03]} e5 {[%emt 0:00:09]} 2. Nf3 {[%emt 0:00:06]} Nc6 {[%emt 0:00:06]} 3. Bb5 {[%emt 0:00:08]} Nf6 {[%emt 0:00:08]} 4. O-O {[%emt 0:00:26]} Nxe4 {[%emt 0:00:06]} 5. Re1 {[%emt 0:00:23]} Nd6 {[%emt 0:00:07]} 6. a4 {[%emt 0:01:56] C67: Ruy Lopez: Berlin Defence: 4 0-0 Nxe4.} Be7 {[%emt 0:00:36]} 7. Nxe5 {[%emt 0:00:49]} Nxe5 {[%emt 0:14:41]} 8. Rxe5 {[%emt 0:00:05] [#] The position is equal.} c6 $146 {[%emt 0:00:40]} ({Predecessor:} 8... Nxb5 9. axb5 O-O 10. Nc3 d6 11. Re1 Re8 12. Nd5 Be6 13. Nxe7+ Rxe7 14. b3 Bg4 {1-0 (40) Rey Martinez,J (1828)-Palomo Monserrat,L (1148) Collado Villalba 2020}) 9. Bf1 {[%emt 0:13:27]} O-O {[%emt 0:00:31]} 10. d4 {[%emt 0:02:52][%cal Bd2d4,Bd4d5][%mdl 32]} Ne8 {[%emt 0:01:19]} (10... Bf6 $5 {[%cal Rf6e5]}) 11. d5 {[%emt 0:02:42]} d6 {[%emt 0:03:28]} 12. Re1 {[%emt 0:00:55]} Nc7 {[%emt 0:09:18]} 13. Nc3 {[%emt 1:13:08][%cal Bb1c3,Bc3e4,Be4g3,Bg3h5][%mdl 32]} Bf6 {[%emt 0:06:40]} 14. dxc6 {[%emt 0:00:00]} bxc6 {[%emt 0:00:51]} 15. Ne4 {[%emt 0:00:00]} Be7 {[%emt 0:00:55]} 16. Qf3 {[%emt 0:00:00]} Rb8 {[%emt 0:08:18]} 17. Bd3 {[%emt 0:00:00]} Ne6 {[%emt 0:05:47][%cal Bc7e6,Be6d4,Bd4e2][%mdl 32]} 18. Ng3 {[%emt 0:00:00]} d5 {[%emt 0:05:38]} 19. Nh5 {[%emt 0:00:00]} Bd6 {[%emt 0:15:48] Against Qg3} 20. b3 {[%emt 0:00:00]} Qh4 {[%emt 0:06:38]} 21. g3 {[%emt 0:00:00]} ({White should try} 21. Ng3 $15) 21... Nd4 $40 {[%emt 0:00:32][%mdl 128] Black goes for the king.} 22. Bxh7+ {[%emt 0:03:54] [#]} (22. Qd1 $17 Qg4 23. Bf4 Bxf4 24. Nxf4 (24. Qxg4 $2 Bxg4 25. Nxf4 Nf3+ 26. Kg2 Nxe1+ 27. Rxe1 Rfe8 $19) 24... Nf3+ 25. Kg2 Nxe1+ 26. Qxe1) 22... Kh8 $1 $19 {[%emt 0:02:30] The board is on fire.} ({Stronger than} 22... Kxh7 23. Qd3+ Bf5 24. Qxf5+ Nxf5 25. gxh4 $17) 23. Qd1 {[%emt 0:00:28]} Qg4 {[%emt 0:00:16] White must now prevent ...Nf3+.} 24. Be4 {[%emt 0:00:33][%cal Oc1b2] Prevents Nf3+.} Qxd1 {[%emt 0:02:25]} 25. Rxd1 {[%emt 0:00:01][%cal Oc1b2] [#]} Be5 $1 {[%emt 0:02:17]} 26. Bb2 $2 {[%emt 0:00:54]} (26. Be3 Ne2+ 27. Kf1 dxe4 28. Bxa7) 26... Ne2+ {[%emt 0:00:19][%mdl 64] Discovered Attack} 27. Kf1 {[%emt 0:00:38]} Bxb2 {[%emt 0:13:57] Weighted Error Value: White=0.35/Black=0.03 (flawless)} 0-1

[Event "1st Bella Italia International 2022"]
[Site "Lignano"]
[Date "2022.08.18"]
[Round "1.7"]
[White "Zeller, Frank"]
[Black "Urbani, Gabriel"]
[Result "1-0"]
[ECO "C78"]
[WhiteElo "2356"]
[BlackElo "2046"]
[Annotator "TA"]
[PlyCount "51"]
[EventDate "2022.08.18"]
[EventCountry "ITA"]
[SourceTitle "playchess.com"]
[Source "ChessBase"]
[SourceQuality "1"]
[TimeControl "5400+30"]

{[%evp 16,51,24,37,26,35,44,38,33,11,23,25,14,0,0,0,1,-106,-113,-108,-16,-32,0,-138,275,277,964,927,997,993,987,955,29993,29991,29994,29995,29995,29996]} 1. e4 {[%emt 0:00:06]} e5 {[%emt 0:00:16]} 2. Nf3 {[%emt 0:00:47]} Nc6 {[%emt 0:00:12]} 3. Bb5 {[%emt 0:00:19][%cal Bf1b5,Bb5a4,Ba4b3][%mdl 32]} a6 {[%emt 0:00:22]} 4. Ba4 {[%emt 0:00:11]} Nf6 {[%emt 0:00:20]} 5. d3 {[%emt 0:00:20]} b5 {[%emt 0:01:00]} 6. Bb3 {[%emt 0:00:07]} Bc5 {[%emt 0:00:39]} 7. a4 {[%emt 0:01:39]} Bb7 {[%emt 0:01:09]} 8. O-O {[%emt 0:02:58] is the legacy move (8.Nc3).} O-O {[%emt 0:02:37]} 9. Bg5 {[%emt 0:01:45][%cal Bc1g5,Bg5h4,Bh4g3][%mdl 32] is the new trend.} h6 {[%emt 0:01:58] C78: Ruy Lopez: Archangelsk and Möller Defences.} 10. Bh4 {[%emt 0:01:03] 10.axb5 is not played anymore.} g5 {[%emt 0:05:53]} 11. Bg3 {[%emt 0:01:05]} d6 {[%emt 0:00:35] White is slightly better.} 12. axb5 {[%emt 0:15:07]} axb5 {[%emt 0:00:22] [#]} 13. Rxa8 $146 {[%emt 0:00:13]} ({Predecessor:} 13. Nc3 Rxa1 14. Qxa1 b4 15. Nd5 Nh5 16. Qa4 Kg7 17. Qb5 Nxg3 18. hxg3 Qb8 19. Ra1 {1-0 (43) Douglass,S-Tremblay,L CServe email 1998}) 13... Qxa8 {[%emt 0:05:42]} 14. h4 {[%emt 0:13:23]} g4 {[%emt 0:04:55]} 15. Nh2 {[%emt 0:02:40][%cal Bf3h2,Bh2g4,Bg4e3,Be3f5][%mdl 32]} Qc8 {[%emt 0:03:23]} 16. h5 {[%emt 0:24:10]} (16. c3 $11) 16... Nxh5 $17 {[%emt 0:10:10]} 17. Bh4 {[%emt 0:00:13]} Nf4 {[%emt 0:02:35]} (17... Nd4 $17 {Threatens to win with ...Nf4.} 18. Nxg4 Kg7) 18. Nxg4 {[%emt 0:03:55]} Kg7 {[%emt 0:04:47] Strongly threatening ...f5.} 19. g3 {[%emt 0:05:00] [#]} (19. Nf6 $11 {remains equal.}) 19... Nh5 $2 {[%emt 0:13:36][%mdl 8192] This costs Black the game.} (19... h5 $1 $17 {[%cal Rh5g4] stays on course.} 20. gxf4 (20. Nf6 $2 Qh3 $19) 20... Qxg4+ 21. Qxg4+ hxg4) 20. Ne3 $18 {[%emt 0:02:54]} Kg6 {[%emt 0:01:47]} (20... Nxg3 21. Bxg3 Qh3) 21. Nf5 {[%emt 0:02:29] Qg4+ would kill now.} Nf6 {[%emt 0:15:33] Inhibits Qg4+.} 22. Bxf6 {[%emt 0:00:58]} Kxf6 {[%emt 0:00:08]} 23. Qh5 {[%emt 0:00:06][%cal Rh5h6] [#]} Rg8 {[%emt 0:01:15]} 24. Qxf7+ {[%emt 0:04:13] White mates.} Kg5 {[%emt 0:00:29]} 25. Nd2 {[%emt 0:03:55] Pair of Knights!} Nd4 {[%emt 0:01:44]} 26. Qe7+ {[%emt 0:01:02] Weighted Error Value: White=0.30/Black=1.10} 1-0

[Event "1st Bella Italia International 2022"]
[Site "Lignano"]
[Date "2022.08.18"]
[Round "1.8"]
[White "Bordignon, Angelo"]
[Black "Lumachi, Gabriele"]
[Result "0-1"]
[ECO "C56"]
[WhiteElo "2062"]
[BlackElo "2355"]
[Annotator "TA"]
[PlyCount "46"]
[EventDate "2022.08.18"]
[EventCountry "ITA"]
[SourceTitle "playchess.com"]
[Source "ChessBase"]
[SourceQuality "1"]
[TimeControl "5400+30"]

{[%evp 11,46,0,10,-75,-78,-82,-81,-109,-106,-112,-116,-110,-112,-138,-136,-150,-149,-140,-93,-154,-143,-160,-155,-187,-120,-202,-101,-85,-66,-69,-77,-68,-70,-284,-270,-273,-276]} 1. e4 {[%emt 0:00:06]} e5 {[%emt 0:00:16][%cal Be7e5,Be5d4][%mdl 32]} 2. Nf3 {[%emt 0:00:20]} Nc6 {[%emt 0:02:03]} 3. d4 {[%emt 0:01:22]} exd4 {[%emt 0:00:17]} 4. Bc4 {[%emt 0:00:15]} Nf6 {[%emt 0:02:09]} 5. e5 {[%emt 0:01:24]} Ng4 {[%emt 0:05:51][%cal Bf6g4,Bg4e5,Be5g6][%mdl 32]} 6. O-O {[%emt 0:06:58]} d6 {[%emt 0:06:11]} 7. Re1 {[%emt 0:28:08] C56: Two Knights: 4 d4 exd4 5 0-0 Nxe4.} (7. exd6 $11 {remains equal.} Bxd6 8. Re1+ Kf8 9. Nbd2) 7... Ngxe5 $17 {[%emt 0:06:48]} ({But not} 7... dxe5 8. h3 $14) 8. Nxd4 {[%emt 0:05:12]} Be7 {[%emt 0:01:53]} 9. Bb3 {[%emt 0:01:08] Black is better.} Nxd4 {[%emt 0:00:44]} 10. Qxd4 {[%emt 0:00:32] [#] Strongly threatening f4.} O-O $1 {[%emt 0:00:14]} 11. Nc3 {[%emt 0:01:12] [#]} c6 $146 {[%emt 0:01:27] Against Nd5} ({Predecessor:} 11... Be6 12. f4 Nc6 13. Qe4 Bg4 14. Bd5 Re8 15. Bxc6 bxc6 16. Qxc6 h6 17. Bd2 Rb8 {1-0 (38) Solnicki,M-Wasilewski,M Lazy 2010}) 12. Bf4 {[%emt 0:03:33] [#]} Ng6 $1 {[%emt 0:00:54]} 13. Bg3 {[%emt 0:01:15]} d5 {[%emt 0:00:25]} 14. Rad1 {[%emt 0:02:14]} Be6 {[%emt 0:02:53]} (14... Bf5 $142 15. a3 Re8) 15. Qe3 {[%emt 0:03:20]} (15. Ne2 $142) 15... Re8 {[%emt 0:07:55]} 16. Ne4 {[%emt 0:08:53]} f5 {[%emt 0:04:53]} 17. Nd2 {[%emt 0:03:27]} Bf6 {[%emt 0:02:32]} (17... Bf7 $19 {Threatens to win with ...Bd6.} 18. f4 Bd6) 18. Nf3 {[%emt 0:04:17]} (18. Qf3 $17) 18... f4 {[%emt 0:06:53]} ({Black should play} 18... Bxb2 $19 {...Qf6 is the strong threat.} 19. Ng5 Bf7 20. Nxf7 Qf6) 19. Bxf4 {[%emt 0:00:25]} Bg4 {[%emt 0:00:11]} 20. Qxe8+ {[%emt 0:02:36]} Qxe8 {[%emt 0:00:10]} 21. Rxe8+ {[%emt 0:00:02]} Rxe8 {[%emt 0:00:10]} 22. Bc1 {[%emt 0:00:21]} ({White should try} 22. Bg3 $1 $15) 22... Nh4 $19 {[%emt 0:00:37]} 23. h3 {[%emt 0:01:15]} Nxf3+ {[%emt 0:00:37] Weighted Error Value: White=0.55/Black=0.12 (very precise)} 0-1

[Event "1st Bella Italia International 2022"]
[Site "Lignano"]
[Date "2022.08.18"]
[Round "1.9"]
[White "Priyanka Nutakki"]
[Black "Perossa, Nicolas"]
[Result "1-0"]
[ECO "E90"]
[WhiteElo "2308"]
[BlackElo "2107"]
[Annotator "TA"]
[PlyCount "99"]
[EventDate "2022.08.18"]
[EventCountry "ITA"]
[SourceTitle "playchess.com"]
[Source "ChessBase"]
[SourceQuality "1"]
[TimeControl "5400+30"]

{[%evp 13,99,24,61,54,45,8,44,38,64,54,51,61,64,56,58,37,67,33,83,72,67,30,34,49,39,53,35,0,0,-10,-10,-23,-18,-14,-14,-60,-65,-148,-153,-154,-147,-150,-154,-207,216,213,229,231,226,236,231,245,339,357,322,366,354,377,361,335,371,336,494,494,603,533,886,828,922,933,1062,1047,939,881,2879,2796,3513,4506,2058,1829,5729,5594,29971,29972,29972,29971,5804,5096]} 1. d4 {[%emt 0:00:03]} Nf6 {[%emt 0:00:10]} 2. Nf3 {[%emt 0:00:47]} g6 {[%emt 0:00:33]} 3. c4 {[%emt 0:00:20]} Bg7 {[%emt 0:00:15]} 4. Nc3 {[%emt 0:00:08]} O-O {[%emt 0:00:18]} 5. Bg5 {[%emt 0:00:45]} d6 {[%emt 0:00:56]} 6. Qd2 {[%emt 0:00:10]} Nbd7 {[%emt 0:01:59]} 7. e4 {[%emt 0:00:20]} c5 {[%emt 1:29:49]} 8. d5 {[%emt 0:00:24] E90: King's Indian: Classical: Early deviations and 6 h3.} a6 {[%emt 0:00:00][%cal Ob7b5]} 9. Bh6 {[%emt 0:03:58]} Re8 {[%emt 0:00:00]} 10. h4 {[%emt 0:03:42][%cal Bh2h4,Bh4h5][%mdl 32] [#] White is slightly better.} e6 $146 {[%emt 0:00:00]} ({Predecessor:} 10... Nf8 11. Bd3 Bd7 12. a4 b5 13. axb5 axb5 14. Rxa8 Qxa8 15. cxb5 Qa1+ 16. Qc1 Qxc1+ 17. Bxc1 {0-1 (31) Santos,M (2006)-Neves,P (2009) Lisbon 2009}) 11. Bxg7 {[%emt 0:01:25] White is more active.} Kxg7 {[%emt 0:00:00]} 12. dxe6 {[%emt 0:07:22]} Rxe6 {[%emt 0:00:00]} 13. O-O-O {[%emt 0:07:27][%cal Oh4h5]} Nxe4 {[%emt 0:00:00]} 14. Nxe4 {[%emt 0:00:14]} Rxe4 {[%emt 0:00:00]} 15. h5 {[%emt 0:00:10] hxg6 is the strong threat.} Nf8 {[%emt 0:00:00]} ({Black should play} 15... Qf6 $14) 16. Bd3 {[%emt 0:06:22]} (16. Qxd6 Qxd6 17. Rxd6 Bg4 $11) 16... Rg4 {[%emt 0:00:00]} 17. Qc3+ {[%emt 0:29:11]} (17. hxg6 fxg6 18. Rde1 Bd7 $11) 17... Kg8 $1 {[%emt 0:00:00]} 18. g3 {[%emt 0:06:19]} ({Don't play} 18. h6 Ne6 19. Rde1 Qf8 $17) 18... b5 {[%emt 0:00:00]} 19. hxg6 {[%emt 0:03:48]} (19. h6 Ne6 20. Rhe1 b4 $17) 19... fxg6 {[%emt 0:00:00]} 20. Nd2 {[%emt 0:03:15]} (20. cxb5 axb5 21. Bxb5 Rxa2 22. Bc4+ Rxc4 23. Qxc4+ Be6 $17) (20. Rhe1 $5 {[%cal Rd3e4]}) 20... b4 {[%emt 0:00:00]} 21. Qc2 {[%emt 0:00:29]} Ne6 {[%emt 0:00:00] And now ...Nd4 would win.} 22. Be4 {[%emt 0:01:43]} Nd4 {[%emt 0:00:00]} 23. Qd3 {[%emt 0:00:30]} Ra7 {[%emt 0:00:00]} 24. Bd5+ {[%emt 0:02:09]} (24. Rhg1 $11) 24... Kg7 $15 {[%emt 0:00:00]} 25. Ne4 {[%emt 0:04:08] [#]} (25. Qe3 $15) 25... Bf5 $1 $17 {[%emt 0:00:00]} 26. Qe3 {[%emt 0:00:10][%cal Oh1h7]} Bxe4 {[%emt 0:00:00]} 27. Bxe4 {[%emt 0:01:14] Threatens to win with Rxd4.} Qg5 {[%emt 0:00:00] Hoping for ...Qxe3+.} 28. f4 {[%emt 0:00:50] [#]} (28. Rde1 $17) 28... Rxg3 $4 {[%emt 0:00:00][%mdl 8192]} (28... Qf6 $1 $19 {[%cal Og4g3] avoids the disaster. aiming for ...Rxg3!} 29. Rde1 h5) 29. Qxd4+ $1 $18 {[%emt 0:00:16] Black is now going downhill.} (29. fxg5 $2 {perishes.} Rxe3 30. Bd5 Re5 $19) 29... cxd4 {[%emt 0:00:00]} 30. fxg5 {[%emt 0:00:02]} Rxg5 {[%emt 0:00:00]} 31. Rxd4 {[%emt 0:00:41]} Rg4 {[%emt 0:00:00]} 32. Rhd1 {[%emt 0:00:33]} Re7 {[%emt 0:00:18]} 33. Bc6 {[%emt 0:02:26]} Rxd4 {[%emt 0:01:59]} 34. Rxd4 {[%emt 0:00:01][%mdl 4096] Endgame KRB-KR} Re6 {[%emt 0:00:10]} 35. Kc2 {[%emt 0:03:31]} h5 {[%emt 0:00:32]} 36. Kb3 {[%emt 0:03:12]} g5 {[%emt 0:03:45]} 37. Kxb4 {[%emt 0:00:11]} g4 {[%emt 0:02:24]} (37... h4 $142 38. Bd7 Rg6) 38. Kc3 {[%emt 0:03:25]} Re1 {[%emt 0:05:50]} 39. Rxd6 {[%emt 0:00:35]} h4 {[%emt 0:00:30]} 40. Rd4 {[%emt 0:00:20]} Rg1 {[%emt 0:00:12]} 41. Bd7 {[%emt 0:00:25]} g3 {[%emt 0:00:18]} 42. Rxh4 {[%emt 0:00:09]} Kf6 {[%emt 0:00:30]} 43. Rg4 {[%emt 0:00:15]} Ke7 {[%emt 0:00:25]} 44. Bc8 {[%emt 0:00:19]} a5 {[%emt 0:00:06]} 45. Kb3 {[%emt 0:00:32]} Kd6 {[%emt 0:00:10]} 46. Ka4 {[%emt 0:00:30]} Kc7 {[%emt 0:00:27]} 47. Be6 {[%emt 0:00:34] Threatening mate with Bd5.} Kb6 {[%emt 0:00:08]} 48. Bd5 {[%emt 0:00:04]} Rb1 {[%emt 0:01:01]} 49. b3 {[%emt 0:00:15]} Rb2 {[%emt 0:00:25]} 50. a3 {[%emt 0:00:05] Weighted Error Value: White=0.14 (very precise) /Black=0.42} 1-0

[Event "1st Bella Italia International 2022"]
[Site "Lignano"]
[Date "2022.08.18"]
[Round "1.10"]
[White "Tencati, Giuseppe"]
[Black "Loiacono, Leonardo"]
[Result "1/2-1/2"]
[ECO "D59"]
[WhiteElo "2055"]
[BlackElo "2291"]
[Annotator "TA"]
[PlyCount "116"]
[EventDate "2022.08.18"]
[EventCountry "ITA"]
[SourceTitle "playchess.com"]
[Source "ChessBase"]
[SourceQuality "1"]
[TimeControl "5400+30"]

{[%evp 20,116,8,-8,0,-11,0,0,3,-7,-8,0,0,-5,0,-25,-17,-16,-10,-23,-9,-19,-12,-17,-16,-8,0,-54,-37,-48,-12,-13,0,0,0,-3,31,29,120,51,98,0,0,0,0,0,0,-3,-3,-5,-2,-2,-3,-4,0,-6,0,-8,-8,-8,-8,-8,-8,-8,-8,-34,-34,-68,-16,-16,-16,-16,-8,-16,-16,-16,-16,-16,-16,-16,-15,-27,-29,-102,-99,-118,-79,-118,-79,-79,-79,-79,-79,-79,-79,-118,0,0,0]} 1. d4 {[%emt 0:00:02]} d5 {[%emt 0:00:12]} 2. c4 {[%emt 0:00:06]} e6 {[%emt 0:00:03]} 3. Nc3 {[%emt 0:00:09]} Be7 {[%emt 0:00:05]} 4. Nf3 {[%emt 0:00:17]} Nf6 {[%emt 0:00:05]} 5. Bg5 {[%emt 0:01:40]} h6 {[%emt 0:00:21]} 6. Bh4 {[%emt 0:00:56]} O-O {[%emt 0:00:11]} 7. e3 {[%emt 0:00:46]} b6 {[%emt 0:00:22]} 8. cxd5 {[%emt 0:02:00]} Nxd5 {[%emt 0:00:21]} 9. Bxe7 {[%emt 0:06:27]} Qxe7 {[%emt 0:00:19]} 10. Nxd5 {[%emt 0:02:22]} exd5 {[%emt 0:00:06]} 11. Qb3 {[%emt 0:03:18]} Be6 {[%emt 0:00:31] D59: Queen's Gambit Declined: Tartakower Defence: Main line (8 cxd5 Nxd5).} 12. Be2 {[%emt 0:01:21]} c5 {[%emt 0:00:25]} 13. Qa3 {[%emt 0:00:27]} Rc8 {[%emt 0:03:03]} 14. O-O {[%emt 0:02:12]} Nc6 {[%emt 0:05:57]} 15. dxc5 {[%emt 0:06:03]} bxc5 {[%emt 0:00:50]} 16. Rac1 {[%emt 0:03:29]} Nb4 {[%emt 0:00:35] [#]} 17. Rfd1 $146 {[%emt 0:05:38]} ({Predecessor:} 17. Qa5 Bf5 18. a3 Bd3 19. Rfe1 Bxe2 20. Rxe2 Nd3 21. Rd1 c4 22. Ne1 Rc5 23. Qc3 Nxe1 24. Qxe1 {1-0 (56) Citak,S (2153)-Pambalou,F (2088) Antalya 2004}) 17... a5 {[%emt 0:01:31]} 18. Rd2 {[%emt 0:27:56]} Bf5 {[%emt 0:08:49]} 19. h3 {[%emt 0:06:06]} a4 {[%emt 0:07:59]} 20. Ne1 {[%emt 0:11:39]} Qg5 {[%emt 0:04:18]} 21. Nf3 {[%emt 0:00:39]} Qf6 {[%emt 0:00:19]} 22. Ne1 {[%emt 0:08:23]} Qg6 {[%emt 0:00:27]} 23. Kh2 {[%emt 0:00:26]} (23. Nd3 $11) 23... Be4 {[%emt 0:01:26]} 24. Bf3 {[%emt 0:02:17]} Ra6 {[%emt 0:06:47]} 25. Bxe4 {[%emt 0:01:04]} Qxe4 {[%emt 0:00:05]} 26. Rcd1 {[%emt 0:03:09]} Rb8 {[%emt 0:02:11]} 27. Qc3 {[%emt 0:02:46]} Nxa2 {[%emt 0:03:57]} (27... c4 $5 {[%cal Rb4a2]}) 28. Qxc5 {[%emt 0:00:03]} Rab6 {[%emt 0:00:18]} (28... Nb4 $11) 29. Nd3 {[%emt 0:02:00]} (29. Rxd5 $16 {aiming for Rd8+.} Qe8 30. R1d4) 29... Rb3 {[%emt 0:02:57]} (29... Rg6 30. Nf4 Rgb6 31. Nxd5 $18 (31. Rxd5 Qe8 $18)) (29... Nb4 $14) 30. Ra1 {[%emt 0:01:10]} (30. Qc7 $16 {Strongly threatening Nc5.} Qe8 31. Nc5) 30... Rxd3 $11 {[%emt 0:03:58]} 31. Rxd3 {[%emt 0:00:01]} Qxd3 {[%emt 0:00:08]} 32. Rxa2 {[%emt 0:00:04][%mdl 4096] Endgame KQR-KQR} Qb3 {[%emt 0:03:15]} 33. Qc7 {[%emt 0:00:53][%cal Oa2a4]} (33. Ra3 {with more complications.} Qxb2 34. Rxa4 Qxf2 35. Rf4) 33... Rf8 {[%emt 0:00:53]} 34. Ra3 {[%emt 0:00:37][%cal Ba2a3,Ba3a4,Ba4f4][%mdl 32]} Qxb2 {[%emt 0:00:06]} 35. Rxa4 {[%emt 0:00:13]} Qxf2 {[%emt 0:00:14]} 36. Qe5 {[%emt 0:00:40]} Rc8 {[%emt 0:03:02]} 37. Rf4 {[%emt 0:00:25]} Qa2 {[%emt 0:00:21]} 38. Qf5 {[%emt 0:00:44]} Rf8 {[%emt 0:01:37]} 39. Rd4 {[%emt 0:00:22]} Re8 {[%emt 0:00:27]} 40. Rxd5 {[%emt 0:00:50]} g6 {[%emt 0:02:26]} 41. Qf3 {[%emt 0:00:21]} Qb3 {[%emt 0:02:21]} 42. e4 {[%emt 0:00:49]} Qb8+ {[%emt 0:00:06]} 43. Kg1 {[%emt 0:00:14]} Qa7+ {[%emt 0:00:32]} ({Black should try} 43... Qb1+ $15 44. Kh2 Qxe4) 44. Kh2 $1 {[%emt 0:00:08]} Qc7+ {[%emt 0:00:03]} 45. Kg1 {[%emt 0:00:08]} Ra8 {[%emt 0:00:31]} 46. Rd1 {[%emt 0:00:06]} Qe5 {[%emt 0:00:19]} 47. Rf1 {[%emt 0:00:13]} Qe6 {[%emt 0:01:15]} 48. Qf4 {[%emt 0:00:35]} h5 {[%emt 0:00:15]} 49. Re1 {[%emt 0:01:46]} Ra2 {[%emt 0:00:56]} 50. Rf1 {[%emt 0:00:42]} Re2 {[%emt 0:01:05]} 51. Qg5 {[%emt 0:00:42]} (51. Qb8+ $11 Kg7 52. Qb7) 51... Rxe4 $17 {[%emt 0:00:20]} 52. Qg3 {[%emt 0:00:18]} Re2 {[%emt 0:00:54]} 53. Qf3 {[%emt 0:00:16]} Re3 {[%emt 0:02:02]} 54. Qa8+ {[%emt 0:00:28]} Kg7 {[%emt 0:00:11]} 55. Qa1+ {[%emt 0:00:12]} Re5 {[%emt 0:01:30]} 56. Qd4 {[%emt 0:00:35]} Qd5 {[%emt 0:00:10]} 57. Qb2 {[%emt 0:00:41]} Kh7 {[%emt 0:00:15]} (57... Qc5+ $17 58. Qf2 Qe7) 58. Rxf7+ $1 $11 {[%emt 0:00:17]} Qxf7 {[%emt 0:00:08] Weighted Error Value: White=0.14 (very precise) /Black=0.14 (very precise)} 1/2-1/2